bitfinex-derivatives/quotes_BTCF0:USTF0_20241005
["timestamp","ask_amount","ask_price","bid_price","bid_amount"]
[1728097300546,0.14663,61801.0,61800.0,0.004]
[1728097300847,0.17913,61801.0,61800.0,0.004]
[1728097301851,0.18013,61801.0,61800.0,0.004]
[1728097302350,0.18013,61801.0,61800.0,0.003]
[1728097302542,0.18113,61801.0,61800.0,0.004]
[1728097303243,0.18113,61801.0,61800.0,0.12730584]
[1728097303646,0.18113,61801.0,61800.0,0.20814319]
[1728097303845,0.18113,61801.0,61800.0,0.20814545]
[1728097304358,0.18113,61801.0,61800.0,0.004]
[1728097304948,0.54193,61801.0,61800.0,0.004]
[1728097308550,0.54193,61801.0,61800.0,0.06866986]
[1728097308752,0.54193,61801.0,61800.0,0.004]
[1728097310253,1.02737,61801.0,61800.0,0.004]
[1728097310457,1.62737,61801.0,61800.0,0.004]
[1728097310655,1.62737,61801.0,61800.0,0.002]
[1728097312652,1.98817,61801.0,61800.0,0.002]
[1728097313852,1.98817,61801.0,61800.0,0.06663872]
[1728097314674,0.056634,61797.0,61795.0,0.08079106]
[1728097314853,0.39027584,61796.0,61778.0,0.09]
[1728097315052,0.09,61780.0,61779.0,0.33011682]
[1728097315250,0.056645,61785.0,61782.0,0.056647]
[1728097315461,0.09,61783.0,61782.0,0.056647]
[1728097315664,0.146647,61783.0,61782.0,0.056647]
[1728097315853,0.09,61783.0,61778.0,0.02859011]
[1728097316053,0.09,61779.0,61778.0,0.001]
[1728097316348,0.056648,61782.0,61778.0,0.001]
[1728097316349,0.09,61781.0,61778.0,0.18100151]
[1728097316549,0.089,61781.0,61778.0,0.057651]
[1728097318159,0.001,61779.0,61778.0,0.057651]
[1728097318365,0.002,61779.0,61778.0,0.056651]
[1728097318858,0.001,61779.0,61778.0,0.056651]
[1728097319060,0.001,61781.0,61780.0,0.056649]
[1728097319256,0.0113,61789.0,61780.0,1.1756]
[1728097319559,0.157938,61793.0,61788.0,0.09]
[1728097319761,0.157938,61793.0,61789.0,0.0303]
[1728097319762,0.146638,61793.0,61789.0,0.0303]
[1728097320257,0.09,61790.0,61789.0,0.0303]
[1728097320973,0.05906723,61792.0,61789.0,0.1203]
[1728097321150,0.00242823,61792.0,61791.0,0.09]
[1728097321664,0.00242823,61792.0,61789.0,0.1603]
[1728097322368,0.05906723,61792.0,61789.0,0.0303]
[1728097322555,0.00242823,61792.0,61789.0,0.0303]
[1728097322864,0.05906623,61792.0,61789.0,0.0303]
[1728097323059,0.05906623,61792.0,61789.0,0.0323]
[1728097323657,0.056639,61791.0,61789.0,0.0323]
[1728097323858,0.00242823,61792.0,61789.0,0.0323]
[1728097324053,0.05664,61790.0,61789.0,0.0323]
[1728097324258,0.05664,61790.0,61789.0,0.002]
[1728097325157,0.05664,61790.0,61789.0,0.003]
[1728097325361,0.05664,61790.0,61789.0,0.002]
[1728097325666,0.05664,61790.0,61789.0,0.001]
[1728097325856,0.05664,61790.0,61789.0,0.002]
[1728097326059,0.05664,61790.0,61789.0,0.001]
[1728097326360,0.05664,61790.0,61789.0,0.002]
[1728097329658,0.77824,61790.0,61789.0,0.002]
[1728097333561,0.77824,61790.0,61780.0,0.062]
[1728097333562,0.056646,61784.0,61780.0,0.0303]
[1728097333862,0.056646,61784.0,61781.0,0.12334674]
[1728097334060,0.056646,61784.0,61782.0,0.12334674]
[1728097334265,0.056646,61784.0,61783.0,0.12334674]
[1728097335466,0.088546,61784.0,61783.0,0.12334674]
[1728097336061,0.089546,61784.0,61783.0,0.12434674]
[1728097336467,0.089546,61784.0,61783.0,0.1243463]
[1728097337564,0.058646,61784.0,61783.0,0.1243463]
[1728097339866,0.419446,61784.0,61783.0,0.1243463]
[1728097340470,0.419446,61784.0,61783.0,0.001]
[1728097348480,0.419446,61784.0,61783.0,0.12434897]
[1728097348875,0.058646,61784.0,61783.0,0.12434897]
[1728097349176,0.419446,61784.0,61783.0,0.12434897]
[1728097350966,0.058646,61784.0,61783.0,0.12434897]
[1728097351162,0.419446,61784.0,61783.0,0.12434897]
[1728097351575,0.419446,61784.0,61783.0,0.27448482]
[1728097351770,0.419446,61784.0,61783.0,0.12434897]
[1728097352369,0.419446,61784.0,61783.0,0.27448669]
[1728097352979,0.419446,61784.0,61783.0,0.12434897]
[1728097353872,0.058646,61784.0,61783.0,0.12434897]
[1728097354073,0.419446,61784.0,61783.0,0.12434897]
[1728097354979,0.419446,61784.0,61783.0,0.22146349]
[1728097355579,0.419446,61784.0,61783.0,0.001]
[1728097356774,0.452146,61784.0,61783.0,0.001]
[1728097357279,0.056674,61753.0,61751.0,0.09711452]
[1728097357584,0.09,61752.0,61737.0,0.056688]
[1728097357776,0.09,61740.0,61737.0,0.056688]
[1728097357967,0.09,61740.0,61735.0,0.0635]
[1728097358171,0.09,61743.0,61736.0,0.09]
[1728097358367,0.056684,61742.0,61735.0,0.09]
[1728097358585,0.146684,61742.0,61735.0,0.09]
[1728097358771,0.056684,61742.0,61741.0,0.09]
[1728097359276,0.0113,61750.0,61728.0,0.0024297]
[1728097359277,0.091,61743.0,61737.0,0.09]
[1728097359676,0.091,61743.0,61733.0,0.0635]
[1728097359677,0.13,61742.0,61733.0,0.0635]
[1728097359874,0.13,61738.0,61732.0,0.3608]
[1728097360075,0.13,61734.0,61732.0,0.3608]
[1728097360773,0.13,61738.0,61732.0,0.3608]
[1728097360974,0.0133,61743.0,61732.0,0.4908]
[1728097361178,0.0133,61743.0,61733.0,0.0331]
[1728097361376,0.002,61743.0,61737.0,0.13]
[1728097361678,0.001,61738.0,61737.0,0.13]
[1728097362387,0.002,61738.0,61737.0,0.13]
[1728097362577,2.798e-05,61746.0,61737.0,0.13]
[1728097363170,0.001,61738.0,61737.0,0.13]
[1728097363981,0.001,61743.0,61737.0,0.13]
[1728097364282,0.001,61743.0,61738.0,0.056688]
[1728097364673,0.00102798,61746.0,61738.0,0.056688]
[1728097364887,0.13,61745.0,61738.0,0.056688]
[1728097365787,0.13,61745.0,61739.0,0.056687]
[1728097366283,0.131,61745.0,61739.0,0.056687]
[1728097366585,0.001,61743.0,61740.0,0.056686]
[1728097366782,0.131,61745.0,61742.0,0.13]
[1728097366783,0.001,61745.0,61742.0,0.13]
[1728097366975,0.0081,61758.0,61743.0,0.12340292]
[1728097367193,0.13,61755.0,61744.0,0.12340292]
[1728097367481,0.13,61751.0,61746.0,0.05668]
[1728097368384,0.0321,61762.0,61743.0,0.13]
[1728097368385,0.13,61755.0,61743.0,0.13]
[1728097368578,0.13,61755.0,61749.0,0.056677]
[1728097368786,0.13,61755.0,61750.0,0.0313]
[1728097368982,0.13,61755.0,61749.0,0.056677]
[1728097369489,0.13,61755.0,61743.0,0.056683]
[1728097369679,0.001,61751.0,61746.0,0.001]
[1728097369983,0.001,61751.0,61749.0,0.001]
[1728097370489,0.13,61751.0,61749.0,0.003]
[1728097370890,0.13,61751.0,61749.0,0.002]
[1728097371090,0.131,61751.0,61749.0,0.002]
[1728097371389,0.132,61751.0,61749.0,0.002]
[1728097371586,0.002,61751.0,61749.0,0.058677]
[1728097372786,0.002,61751.0,61749.0,0.059677]
[1728097373579,0.132,61751.0,61749.0,0.003]
[1728097374696,0.132,61751.0,61698.0,0.3246]
[1728097374697,0.48584,61750.0,61698.0,0.3246]
[1728097374889,0.13,61733.0,61727.0,0.3608]
[1728097375087,0.13,61733.0,61730.0,0.056695]
[1728097375684,0.13,61733.0,61732.0,0.001]
[1728097376191,0.13,61733.0,61730.0,0.056695]
[1728097376391,0.13,61733.0,61730.0,0.057695]
[1728097376392,0.131,61733.0,61730.0,0.057695]
[1728097376595,0.131,61733.0,61732.0,0.001]
[1728097377189,0.131,61733.0,61730.0,0.057695]
[1728097377394,0.3598,61731.0,61730.0,0.001]
[1728097379097,0.3608,61731.0,61730.0,0.001]
[1728097379598,0.3608,61731.0,61730.0,0.06429546]
[1728097379889,0.3608,61731.0,61729.0,0.12099146]
[1728097380287,0.3608,61731.0,61728.0,0.0024297]
[1728097380496,0.3618,61731.0,61730.0,0.06434614]
[1728097381296,0.3618,61731.0,61730.0,0.056695]
[1728097381687,0.30506567,61731.0,61730.0,0.056695]
[1728097381992,0.002,61731.0,61730.0,0.056695]
[1728097382300,0.002,61731.0,61730.0,0.18013065]
[1728097382784,0.001,61731.0,61730.0,0.18013065]
[1728097382983,0.002,61731.0,61730.0,0.31013065]
[1728097383594,0.002,61731.0,61730.0,0.43824517]
[1728097384189,0.3608,61740.0,61735.0,0.05669]
[1728097384386,0.3608,61740.0,61736.0,0.12343052]
[1728097384591,0.3608,61740.0,61731.0,0.0312]
[1728097384592,0.3608,61740.0,61737.0,0.12343052]
[1728097384784,0.3608,61740.0,61737.0,0.056689]
[1728097385194,0.3608,61740.0,61738.0,0.18011769]
[1728097385394,0.3608,61740.0,61739.0,0.18011664]
[1728097385592,0.3608,61740.0,61739.0,0.186687]
[1728097385793,0.3618,61740.0,61739.0,0.186687]
[1728097386501,0.3628,61740.0,61739.0,0.186687]
[1728097387495,0.002,61740.0,61739.0,0.186687]
[1728097388384,0.002,61740.0,61739.0,1.33814156]
[1728097388599,0.002,61740.0,61739.0,1.273607]
[1728097391192,0.002,61740.0,61739.0,0.673607]
[1728097392608,0.0038,61746.0,61739.0,0.35152764]
[1728097392786,0.0038,61750.0,61745.0,0.08076019]
[1728097392990,0.056677,61750.0,61746.0,0.08076019]
[1728097393202,0.056682,61744.0,61742.0,0.08076019]
[1728097393388,0.1616,61743.0,61742.0,0.08076019]
[1728097393699,0.218283,61743.0,61741.0,0.08076019]
[1728097393904,0.218283,61743.0,61740.0,0.08076019]
[1728097394294,0.1616,61743.0,61740.0,0.08076019]
[1728097394704,0.1616,61743.0,61741.0,0.08076019]
[1728097394895,0.088284,61743.0,61741.0,0.08076019]
[1728097395396,0.088284,61743.0,61740.0,0.08076019]
[1728097395599,0.0316,61743.0,61740.0,0.08076019]
[1728097395999,0.0326,61743.0,61741.0,0.002]
[1728097396193,0.0336,61743.0,61742.0,0.002]
[1728097396396,0.002,61743.0,61742.0,0.002]
[1728097396696,0.002,61743.0,61742.0,0.08276019]
[1728097397100,0.001,61743.0,61742.0,0.08076019]
[1728097397303,0.002,61743.0,61742.0,0.08076019]
[1728097397802,0.002,61743.0,61742.0,0.26086743]
[1728097398698,0.001,61743.0,61742.0,0.18010724]
[1728097398900,0.002,61743.0,61742.0,0.18210724]
[1728097400705,0.002,61743.0,61742.0,0.27904707]
[1728097400897,0.002,61743.0,61742.0,0.18210724]
[1728097401296,0.002,61743.0,61742.0,0.27904702]
[1728097401705,0.002,61743.0,61742.0,0.18210724]
[1728097402204,0.002,61743.0,61742.0,0.66798724]
[1728097402406,0.002,61743.0,61742.0,0.70058724]
[1728097402702,0.002,61743.0,61742.0,1.30058724]
[1728097402903,0.0038,61748.0,61747.0,0.05668]
[1728097403097,0.3646,61752.0,61751.0,0.056676]
[1728097403292,0.3646,61759.0,61751.0,0.40361899]
[1728097403498,0.3646,61759.0,61757.0,0.18667]
[1728097403499,0.3608,61759.0,61757.0,0.18667]
[1728097403702,0.3608,61759.0,61758.0,0.18009224]
[1728097405010,0.003,61759.0,61758.0,0.18009224]
[1728097405599,0.0038,61763.0,61762.0,0.056666]
[1728097405794,0.3608,61765.0,61762.0,0.31008924]
[1728097406000,0.3608,61765.0,61763.0,0.20413339]
[1728097406308,0.3608,61765.0,61763.0,0.056665]
[1728097407002,0.0318,61770.0,61763.0,0.08071015]
[1728097407202,0.0038,61774.0,61769.0,0.13]
[1728097407508,0.02600318,61779.0,61773.0,0.186656]
[1728097407805,0.03963876,61778.0,61777.0,0.13]
[1728097408211,0.03963876,61778.0,61777.0,0.186652]
[1728097409109,0.05063876,61778.0,61777.0,0.187652]
[1728097409406,0.0506363,61778.0,61777.0,0.187652]
[1728097409601,0.006,61778.0,61777.0,0.548452]
[1728097409798,0.0038,61783.0,61777.0,0.548452]
[1728097409799,0.0038,61783.0,61781.0,0.056648]
[1728097409998,0.0038,61789.0,61782.0,0.186647]
[1728097410412,0.0038,61789.0,61783.0,0.056646]
[1728097410599,0.0038,61789.0,61784.0,0.056645]
[1728097410800,0.0305,61790.0,61779.0,0.05665]
[1728097411014,0.060441,61789.0,61779.0,0.05665]
[1728097411904,0.060441,61789.0,61779.0,0.06165]
[1728097412107,0.060441,61789.0,61781.0,0.13]
[1728097414311,0.060441,61789.0,61781.0,0.132]
[1728097414811,0.060441,61789.0,61781.0,0.133]
[1728097416910,0.056642,61788.0,61781.0,0.133]
[1728097417612,0.056653,61777.0,61773.0,0.0075]
[1728097417833,0.064,61776.0,61769.0,0.00242787]
[1728097418010,0.120653,61776.0,61769.0,0.00242787]
[1728097418409,0.064,61776.0,61769.0,0.00242787]
[1728097418913,0.064,61776.0,61773.0,0.02]
[1728097419517,0.056655,61774.0,61773.0,0.02]
[1728097420028,0.065,61776.0,61773.0,0.011]
[1728097420229,0.0333,61776.0,61773.0,0.011]
[1728097420828,0.0333,61776.0,61775.0,0.13]
[1728097421041,0.0343,61776.0,61775.0,0.13]
[1728097421538,0.0343,61776.0,61773.0,0.056655]
[1728097421539,0.0343,61776.0,61773.0,0.008]
[1728097421834,0.001,61774.0,61773.0,0.015]
[1728097422037,0.001,61774.0,61773.0,0.007]
[1728097422538,0.0333,61776.0,61770.0,0.056658]
[1728097422737,0.0343,61776.0,61773.0,0.007]
[1728097423437,0.001,61774.0,61773.0,0.007]
[1728097423827,0.001,61774.0,61773.0,0.017]
[1728097424937,0.002,61774.0,61773.0,0.017]
[1728097425336,0.001,61774.0,61773.0,0.01]
[1728097425537,0.001,61774.0,61773.0,0.018]
[1728097426138,0.001,61774.0,61773.0,0.01]
[1728097426336,0.002,61774.0,61773.0,0.018]
[1728097426734,0.002,61774.0,61773.0,0.074656]
[1728097430744,0.04163978,61774.0,61773.0,0.074656]
[1728097431645,0.04163978,61774.0,61773.0,0.09816713]
[1728097431646,0.002,61774.0,61773.0,0.09816713]
[1728097432640,0.0416385,61774.0,61773.0,0.09816713]
[1728097434244,0.0416385,61774.0,61773.0,0.22816713]
[1728097434245,0.14585954,61774.0,61773.0,0.22816713]
[1728097434543,0.23518217,61774.0,61773.0,0.22816713]
[1728097435247,0.09132263,61774.0,61773.0,0.22816713]
[1728097435442,0.0416385,61774.0,61773.0,0.22816713]
[1728097435745,0.0416384,61774.0,61773.0,1.07460713]
[1728097435936,0.0038,61782.0,61781.0,0.056648]
[1728097436133,0.14404656,61782.0,61781.0,0.186648]
[1728097436337,0.04968287,61782.0,61781.0,0.186648]
[1728097437047,0.04968287,61782.0,61781.0,0.188648]
[1728097437343,0.19372943,61782.0,61781.0,0.188648]
[1728097437543,0.14404656,61784.0,61783.0,0.056647]
[1728097437752,0.3608,61787.0,61783.0,0.186647]
[1728097438049,0.3608,61787.0,61786.0,0.10511836]
[1728097438253,0.3608,61787.0,61786.0,0.056644]
[1728097438435,0.3608,61787.0,61786.0,0.10510859]
[1728097438839,0.0038,61795.0,61785.0,0.04846459]
[1728097439041,0.0314,61800.0,61791.0,0.13]
[1728097439042,0.0038,61796.0,61791.0,0.13]
[1728097439350,0.3608,61801.0,61799.0,0.056632]
[1728097439543,0.3608,61801.0,61800.0,0.186631]
[1728097439847,0.3684,61807.0,61801.0,0.056629]
[1728097440033,0.3684,61807.0,61802.0,0.056629]
[1728097441045,0.0114276,61804.0,61802.0,0.056629]
[1728097441553,0.0114276,61804.0,61801.0,0.0324]
[1728097441735,0.009,61804.0,61803.0,0.056628]
[1728097442236,0.009,61804.0,61803.0,0.542028]
[1728097443239,0.0038,61811.0,61804.0,0.056626]
[1728097443439,0.422058,61814.0,61810.0,0.13]
[1728097443741,0.417418,61814.0,61810.0,0.13]
[1728097444439,0.001,61811.0,61810.0,0.13]
[1728097444747,0.001,61811.0,61810.0,0.186622]
[1728097444945,0.003,61811.0,61810.0,0.186622]
[1728097445744,0.003,61811.0,61810.0,0.13]
[1728097445946,0.29971174,61811.0,61810.0,0.11054773]
[1728097446548,0.08926956,61811.0,61810.0,0.11154773]
[1728097446739,0.09226956,61811.0,61810.0,0.11154773]
[1728097447141,0.09426956,61811.0,61810.0,0.11054773]
[1728097447341,0.09126956,61811.0,61810.0,0.11054773]
[1728097447541,0.09426956,61811.0,61810.0,0.11054773]
[1728097448852,0.09426956,61811.0,61810.0,0.16716973]
[1728097449444,0.09426872,61811.0,61810.0,0.16716973]
[1728097451846,0.09426872,61811.0,61810.0,0.13951596]
[1728097453055,0.005,61811.0,61810.0,0.13951596]
[1728097456255,0.005,61811.0,61802.0,0.1375]
[1728097456449,0.056622,61810.0,61800.0,0.056631]
[1728097456646,0.056622,61810.0,61802.0,0.13]
[1728097456846,0.056624,61808.0,61800.0,0.056631]
[1728097457645,0.056624,61808.0,61802.0,0.135]
[1728097457850,0.056624,61808.0,61802.0,0.141]
[1728097458258,0.056624,61808.0,61802.0,0.135]
[1728097458457,0.057624,61808.0,61802.0,0.135]
[1728097459458,0.002,61808.0,61802.0,0.13]
[1728097460066,0.002,61808.0,61804.0,0.056627]
[1728097460263,0.002,61808.0,61806.0,0.13]
[1728097460264,0.001,61808.0,61806.0,0.13]
[1728097460452,0.002,61808.0,61806.0,0.13]
[1728097460756,0.002,61808.0,61807.0,0.056625]
[1728097460948,0.04161568,61808.0,61807.0,0.056625]
[1728097461154,0.04161568,61808.0,61807.0,0.088825]
[1728097461155,0.09027124,61808.0,61807.0,0.088825]
[1728097462262,0.09026748,61808.0,61807.0,0.088825]
[1728097462656,0.08926748,61808.0,61807.0,0.088825]
[1728097463367,0.08926638,61808.0,61807.0,0.089825]
[1728097465158,0.08926638,61808.0,61807.0,0.11299631]
[1728097467962,0.0038,61812.0,61811.0,0.056621]
[1728097468267,0.20844095,61814.0,61813.0,0.056619]
[1728097468482,0.001,61814.0,61813.0,0.056619]
[1728097468659,0.0038,61820.0,61812.0,0.0657]
[1728097468854,0.0038,61823.0,61819.0,0.186613]
[1728097469062,0.0328,61825.0,61819.0,0.186613]
[1728097469267,0.00622691,61827.0,61820.0,0.056613]
[1728097470164,0.3728,61821.0,61820.0,0.056613]
[1728097470462,0.3608,61821.0,61820.0,0.056613]
[1728097470667,0.3738,61821.0,61820.0,0.057613]
[1728097471059,0.3858,61821.0,61820.0,0.057613]
[1728097472371,0.025,61821.0,61820.0,0.057613]
[1728097472672,0.025,61821.0,61820.0,0.087913]
[1728097473069,0.013,61821.0,61820.0,0.087913]
[1728097473371,0.013,61821.0,61820.0,1.19781376]
[1728097473372,0.026,61821.0,61820.0,1.19781376]
[1728097473563,0.013,61821.0,61820.0,1.19681376]
[1728097473765,0.023,61821.0,61820.0,1.19781376]
[1728097473965,0.02,61821.0,61820.0,1.19781376]
[1728097474670,0.02,61821.0,61820.0,0.59781376]
[1728097475062,0.02,61821.0,61820.0,1.19781376]
[1728097476064,0.1672516,61821.0,61820.0,0.9388587]
[1728097476472,0.1672516,61821.0,61820.0,0.9954717]
[1728097477065,0.1672516,61821.0,61820.0,1.01888251]
[1728097478564,0.1672516,61821.0,61820.0,0.08202381]
[1728097482172,0.1672516,61821.0,61820.0,0.186613]
[1728097482372,0.16725466,61821.0,61820.0,0.186613]
[1728097482567,0.16725466,61821.0,61820.0,0.056613]
[1728097482773,0.16725466,61821.0,61820.0,0.186613]
[1728097482974,0.02,61821.0,61820.0,0.186613]
[1728097483273,0.012,61821.0,61820.0,0.21022971]
[1728097486469,0.012,61821.0,61820.0,1.29550971]
[1728097486671,0.0038,61827.0,61826.0,0.186607]
[1728097486871,0.0038,61834.0,61827.0,0.056606]
[1728097487076,0.1444213,61828.0,61827.0,0.056606]
[1728097489076,0.1444213,61828.0,61827.0,0.057606]
[1728097489476,0.1544213,61828.0,61827.0,0.058606]
[1728097490580,0.1544213,61828.0,61827.0,0.132]
[1728097490773,0.1544213,61828.0,61827.0,0.002]
[1728097492386,0.20406503,61828.0,61827.0,0.002]
[1728097494384,0.37987125,61828.0,61827.0,0.002]
[1728097495677,0.37987125,61828.0,61827.0,0.132]
[1728097496081,0.20406503,61828.0,61827.0,0.132]
[1728097496581,0.20406446,61828.0,61827.0,0.132]
[1728097497985,0.20406446,61828.0,61827.0,0.188606]
[1728097498292,0.26207002,61828.0,61827.0,0.16678089]
[1728097499377,0.11764872,61828.0,61827.0,0.16678089]
[1728097500493,0.11564872,61828.0,61827.0,0.16778089]
[1728097501285,0.0038,61835.0,61827.0,0.16778089]
[1728097501286,0.0044,61849.0,61827.0,0.47297489]
[1728097501497,0.1406213,61839.0,61838.0,0.056596]
[1728097501788,0.0307,61845.0,61828.0,0.056605]
[1728097501789,0.1406213,61844.0,61843.0,0.056592]
[1728097501980,0.1406213,61844.0,61834.0,0.0075]
[1728097502175,0.1406213,61844.0,61843.0,0.056592]
[1728097503083,0.1406213,61844.0,61843.0,0.186592]
[1728097503285,0.1446213,61844.0,61843.0,0.186592]
[1728097503489,0.004,61844.0,61843.0,1.271672]
[1728097504182,0.06198563,61844.0,61843.0,1.08508]
[1728097504390,0.06198563,61844.0,61843.0,1.21508]
[1728097504691,0.06198563,61844.0,61843.0,1.271672]
[1728097504990,0.05798563,61844.0,61843.0,1.271672]
[1728097505191,0.05898563,61844.0,61843.0,1.271672]
[1728097505792,0.0326,61854.0,61850.0,0.056585]
[1728097506092,0.0326,61854.0,61851.0,0.056584]
[1728097506093,0.1406213,61852.0,61851.0,0.056584]
[1728097506699,0.0326,61854.0,61853.0,0.056582]
[1728097506988,0.0336,61854.0,61853.0,0.056582]
[1728097507785,0.001,61854.0,61853.0,0.056582]
[1728097507993,0.0309,61863.0,61862.0,0.056574]
[1728097508185,0.1715213,61863.0,61862.0,0.186574]
[1728097508591,0.0309,61863.0,61862.0,0.186574]
[1728097509099,0.0309,61863.0,61862.0,0.187574]
[1728097509481,0.0319,61863.0,61862.0,0.188574]
[1728097510497,0.1725213,61863.0,61862.0,0.002]
[1728097510698,0.5333213,61863.0,61862.0,0.002]
[1728097510886,0.5333213,61863.0,61860.0,0.0038]
[1728097511086,0.1406213,61861.0,61860.0,0.0038]
[1728097511796,0.1406213,61861.0,61857.0,0.02319427]
[1728097512095,0.1619,61862.0,61853.0,0.13]
[1728097512096,0.1406213,61858.0,61853.0,0.13]
[1728097512290,0.1406213,61854.0,61853.0,0.186582]
[1728097512692,0.1406213,61854.0,61853.0,0.20996961]
[1728097513096,0.19024036,61854.0,61853.0,0.20996961]
[1728097513291,0.19024019,61854.0,61853.0,0.20996961]
[1728097513511,0.04961889,61854.0,61853.0,1.29596961]
[1728097513796,0.56756242,61863.0,61862.0,0.056574]
[1728097513990,0.56756242,61863.0,61862.0,0.186574]
[1728097513991,0.53666242,61863.0,61862.0,0.186574]
[1728097514189,0.0303,61873.0,61867.0,0.05657]
[1728097514190,0.17586242,61869.0,61867.0,0.05657]
[1728097514493,0.1719213,61868.0,61867.0,0.18657]
[1728097515799,0.1749213,61868.0,61867.0,0.18857]
[1728097516289,0.1749213,61868.0,61867.0,0.132]
[1728097516596,0.00242465,61876.0,61867.0,0.132]
[1728097516788,0.0304,61878.0,61869.0,0.056568]
[1728097517897,0.3618,61870.0,61869.0,0.056568]
[1728097518405,0.0304,61878.0,61867.0,0.13]
[1728097518703,0.001,61870.0,61869.0,0.056568]
[1728097520194,0.001,61870.0,61865.0,0.38467396]
[1728097520195,0.0304,61878.0,61865.0,0.38467396]
[1728097520393,0.0304,61878.0,61876.0,0.13]
[1728097521198,0.17388979,61877.0,61865.0,0.3608]
[1728097521399,0.17388979,61876.0,61875.0,0.13]
[1728097521998,0.17388979,61876.0,61872.0,0.056565]
[1728097522195,0.17388979,61875.0,61872.0,0.056565]
[1728097522398,0.25751732,61877.0,61870.0,0.13]
[1728097522399,0.17388979,61874.0,61870.0,0.13]
[1728097522604,0.17388979,61874.0,61819.0,0.08099]
[1728097522605,0.056567,61870.0,61860.0,0.056576]
[1728097522894,0.25751732,61862.0,61861.0,0.13]
[1728097523099,0.43140711,61862.0,61861.0,0.186575]
[1728097523501,0.43141674,61862.0,61861.0,0.186575]
[1728097523892,0.17389942,61862.0,61861.0,0.186575]
[1728097524101,0.17389942,61862.0,61861.0,0.191575]
[1728097525297,0.17389942,61862.0,61861.0,0.13800992]
[1728097526094,0.17389942,61862.0,61850.0,0.0316]
[1728097526292,0.17389942,61861.0,61858.0,0.28575582]
[1728097526497,0.0617,61869.0,61861.0,0.056575]
[1728097526697,0.0617,61869.0,61858.0,0.28575582]
[1728097526698,0.17391727,61868.0,61865.0,0.13]
[1728097526895,0.17391727,61867.0,61865.0,0.13]
[1728097527102,0.12430425,61866.0,61865.0,0.13]
[1728097528204,0.0617,61869.0,61865.0,0.13]
[1728097529808,0.0617,61869.0,61858.0,0.43849352]
[1728097529998,0.056572,61865.0,61858.0,0.43849352]
[1728097530203,0.0323,61864.0,61858.0,0.41575582]
[1728097531199,0.0323,61864.0,61861.0,0.13]
[1728097531396,0.0353,61864.0,61861.0,0.186575]
[1728097531910,0.0393,61864.0,61863.0,0.056573]
[1728097532107,0.007,61864.0,61863.0,0.056573]
[1728097533412,0.003,61864.0,61863.0,0.10503277]
[1728097533616,0.006,61864.0,61863.0,0.10503277]
[1728097534111,0.0038,61870.0,61868.0,0.056568]
[1728097534313,0.3608,61871.0,61869.0,0.13]
[1728097534612,0.3608,61871.0,61869.0,0.186568]
[1728097534816,0.3608,61871.0,61870.0,0.056567]
[1728097535908,0.0038,61877.0,61876.0,0.056561]
[1728097536102,0.0617,61879.0,61876.0,0.13]
[1728097536303,0.0316,61879.0,61876.0,0.4908]
[1728097537218,0.003,61879.0,61878.0,0.05656]
[1728097537517,0.007,61879.0,61878.0,0.05656]
[1728097538512,0.007,61879.0,61878.0,0.05756]
[1728097538903,0.0038,61884.0,61882.0,0.056556]
[1728097539099,0.0038,61888.0,61883.0,0.13]
[1728097539305,0.3632242,61893.0,61888.0,0.13]
[1728097539306,0.3670242,61893.0,61888.0,0.13]
[1728097539506,0.3632242,61893.0,61888.0,0.13]
[1728097540811,0.0362,61892.0,61888.0,0.131]
[1728097541114,0.0392,61892.0,61888.0,0.132]
[1728097541813,0.0392,61892.0,61888.0,0.18855]
[1728097542918,0.0392,61892.0,61888.0,0.132]
[1728097544809,0.0392,61892.0,61888.0,0.002]
[1728097545211,0.3608,61889.0,61888.0,0.002]
[1728097549617,0.3608,61889.0,61888.0,0.132]
[1728097550220,0.3608,61889.0,61888.0,0.002]
[1728097552214,0.41735,61889.0,61888.0,0.002]
[1728097552415,0.46694544,61889.0,61888.0,0.002]
[1728097553817,0.41039544,61889.0,61888.0,0.002]
[1728097558024,0.41039544,61889.0,61888.0,0.132]
[1728097558219,0.3608,61889.0,61888.0,0.132]
[1728097560130,0.3608,61889.0,61888.0,0.18855]
[1728097560628,0.3608,61889.0,61888.0,0.132]
[1728097560829,0.3608,61889.0,61888.0,0.002]
[1728097565532,0.41735,61889.0,61888.0,0.002]
[1728097565739,1.63211,61889.0,61885.0,0.04845977]
[1728097565941,1.63211,61889.0,61877.0,0.04845977]
[1728097565942,0.48476,61888.0,61877.0,0.04845977]
[1728097566230,0.05656,61878.0,61874.0,0.04845977]
[1728097566435,0.056552,61886.0,61873.0,0.04845977]
[1728097566436,0.056563,61874.0,61873.0,0.04845977]
[1728097566632,0.4908,61875.0,61870.0,0.00242389]
[1728097566830,0.056566,61871.0,61870.0,0.00242389]
[1728097568237,0.056566,61871.0,61870.0,0.00342389]
[1728097570035,0.05657,61867.0,61858.0,0.0325]
[1728097570237,0.05657,61867.0,61858.0,0.1625]
[1728097570536,0.05657,61867.0,61860.0,0.056576]
[1728097571340,0.05657,61867.0,61858.0,0.21773438]
[1728097571939,0.05657,61867.0,61858.0,0.20573438]
[1728097572241,0.3608,61862.0,61860.0,0.066575]
[1728097573435,0.3608,61862.0,61860.0,0.078575]
[1728097573835,0.3608,61862.0,61860.0,0.068575]